Cogmind - Beta 13 @@@ ROGUE MODE // 2024.04.01 @ 13:57:08 Player: Dami Result: Destroyed by L-31 Rogue with Katana Performance ------------- Evolutions (1) 500 Regions Visited (2) 400 Robots Destroyed (25) 125 Value Destroyed (379) 379 Prototype IDs (0) 0 Alien Tech Used (0) 0 Bonus (2) 2 TOTAL SCORE: 1406 Bonus ------- High Alert Combat Kills 2 Cogmind --------- Core Integrity 0/400 Matter 75/300 Energy 94/100 System Corruption 0% Temperature Cool (0) Movement Core (400) Ox7 Location -9/Materials Parts ------- > --- POWER (2) -------- (None) > --- PROPULSION (3) --- (None) > --- UTILITY (2) ------ Large Storage Unit Signal Interpreter > --- WEAPON (2) ------- Assault Rifle Datajack > --- INVENTORY (15) --- High-capacity Battery (250) Terrain Scanner Peak State ------------ > --- POWER ------------ Ion Engine Ion Engine > --- PROPULSION ------- Light Treads Light Treads Aluminum Leg > --- UTILITY ---------- Large Storage Unit Signal Interpreter > --- WEAPON ----------- Heavy Assault Rifle Grenade Launcher > --- INVENTORY -------- Ion Engine High-capacity Battery Terrain Scanner Medium Laser Assault Rifle Grenade Launcher Datajack Datajack [Rating: 10] Favorites ----------- Power Ion Engine Engine Ion Engine Propulsion Light Treads Treads Light Treads Leg Aluminum Leg Utility Signal Interpreter Storage Small Storage Unit Processor Signal Interpreter Weapon Medium Laser Energy Gun Medium Laser Ballistic Gun Assault Rifle Launcher Grenade Launcher Special Melee Weapon Datajack Build | -11 -10 -9 ------- Run | Yrd Mat Mat Slots Evolved 2 | . . 2 Power 1 | . . 1 Propulsion 1 | . . 1 Utility . | . . . Weapon . | . . . Parts Attached 26 | 8 5 13 Power 4 | 2 . 2 Engine 4 | 2 . 2 Core . | . . . Reactor . | . . . Propulsion 4 | 3 . 1 Treads 2 | 2 . . Leg 2 | 1 . 1 Wheel . | . . . Hover . | . . . Flight . | . . . Utility 3 | 1 2 . Device . | . . . Storage 2 | 1 1 . Processor 1 | . 1 . Hackware . | . . . Protection . | . . . Artifact . | . . . Weapon 15 | 2 3 10 Energy Gun 4 | 2 1 1 Energy Cannon . | . . . Ballistic Gun 4 | . . 4 Ballistic Cannon . | . . . Launcher 5 | . 2 3 Special Weapon . | . . . Impact Weapon . | . . . Slashing Weapon . | . . . Piercing Weapon . | . . . Special Melee Weapon 2 | . . 2 Unidentified Prototypes . | . . . Parts Lost 8 | . . 8 Power 3 | . . 3 Propulsion 2 | . . 2 Utility . | . . . Weapon 3 | . . 3 Highest Loss Streak 8 | . . 8 To Critical Strikes . | . . . Average Slot Usage (%) 96 | . 98 92 Engine 15 | . 14 20 Treads 25 | . 28 19 Leg 2 | . . 9 Storage 13 | . 14 11 Processor 12 | . 13 11 Energy Gun 11 | . 15 2 Ballistic Gun 2 | . . 7 Launcher 11 | . 12 9 Naked Turns . | . . . Heaviest Build 36 | 14 30 36 Greatest Support 40 | 40 40 40 Greatest Overweight (x) 10 | 2 . 10 Average Overweight (x) . | . . . Largest Inventory Capacity 15 | 8 15 15 Average Capacity 10 | 6 8 15 Most Carried 8 | 1 8 8 Average Carried 4 | . 4 6 Final Capacity 15 | 8 15 15 Final Carried 8 | 1 8 2 Class Distribution -------------------- 100% | Mutant Dominant Class ---------------- Mutant | -10/Materials Mutant | -9/Materials Resources | -11 -10 -9 ----------- Run | Yrd Mat Mat Matter Collected 372 | 128 241 3 Remotely . | . . . Salvage Created 321 | . 227 94 Parts 52 | . 44 8 Haulers Intercepted 1 | . 1 . Recyclers Shooed . | . . . Parts Field Recycled . | . . . Retrieved Matter . | . . . Parts Self-Destructed . | . . . Prevented . | . . . Kills | -11 -10 -9 ------- Run | Yrd Mat Mat Combat Hostiles Destroyed 13 | . 11 2 Melee 2 | . 2 . Guns 3 | . 1 2 AOE 8 | . 8 . Classes Destroyed 6 | . 6 . Worker 3 | . 1 2 Builder 4 | . 4 . Hauler 1 | . 1 . Watcher 4 | . 3 1 Swarmer 8 | . 8 . Grunt 5 | . 3 2 Best Kill Streak 6 | . 6 3 Combat Bots Only 3 | . 3 1 Max Kills in Single Turn 3 | . 3 2 Gunslinging . | . . . Exploded 1 | . 1 . Melee 1 | . 1 . Uniques/NPCs Destroyed . | . . . Combat | -11 -10 -9 -------- Run | Yrd Mat Mat Hostile Shots Fired 95 | . 64 31 Missed 19 | . 18 1 Damage Taken 1454 | . 484 970 Core 493 | . 83 410 Absorbed by Shields . | . . . Regen/Repaired (Parts) 35 | . 35 . Core Remaining (%) 83 | 100 66 . Volleys Fired 40 | . 23 17 Largest 2 | . 2 2 Hottest 100 | . 100 50 Shots Fired 64 | . 45 19 Gun 42 | . 27 15 Cannon . | . . . Launcher 22 | . 18 4 Special . | . . . Kinetic 15 | . . 15 Thermal 27 | . 27 . Explosive 22 | . 18 4 Electromagnetic . | . . . Robot Hit Streak 4 | . 4 4 Robot Miss Streak 4 | . 4 2 Penetration Max . | . . . Secondary Targets . | . . . Shots Hit Robots 22 | . 8 14 Core Hits 35 | . 27 8 Critical Kills . | . . . Critical Parts Destroyed . | . . . Critical Strikes . | . . . Melee Attacks 4 | . . 4 Impact . | . . . Slashing . | . . . Piercing . | . . . Sneak Attacks . | . . . Combat Hostiles . | . . . Follow-up Attacks . | . . . Damage Inflicted 1116 | . 788 328 Guns 245 | . 100 145 Cannons . | . . . Explosions 856 | . 674 182 Melee . | . . . Ramming 15 | . 14 1 Kinetic 145 | . . 145 Thermal 100 | . 100 . Explosive 856 | . 674 182 Electromagnetic . | . . . Impact . | . . . Slashing . | . . . Piercing . | . . . Highest Corruption . | . . . Average Corruption . | . . . Corruption Purged . | . . . Corruption Blocked . | . . . Overload Shots . | . . . Overflow Damage 30 | . . 30 Projectiles . | . . . Explosions 30 | . . 30 Melee . | . . . Knockbacks . | . . . Impact . | . . . Kinetic . | . . . Secondary . | . . . Self-Inflicted Damage 174 | . 97 77 Shots 6 | . 4 2 Rammed 10 | . 8 2 Targets Rammed 13 | . 11 2 Kicked . | . . . Crushed 3 | . 3 . Highest Temperature 117 | . 117 . Average Temperature 28 | . 28 . Received Heat Transfer 96 | . 72 24 Siege Activations . | . . . Robots Corrupted . | . . . Combat Hostiles . | . . . Parts Fried . | . . . Impact Corruptions . | . . . Robots Melted . | . . . Combat Hostiles . | . . . Parts Melted 2 | . 2 . Heat Transferred 296 | . 296 . Parts Sabotaged . | . . . Parts Stolen . | . . . Parts Stripped . | . . . Power Chain Reactions . | . . . Alert | -11 -10 -9 ------- Run | Yrd Mat Mat Peak Influence 400 | . 400 166 Initial 103 | . . 103 Average 139 | . 181 84 Maximum Alert Level 2 | . 2 . Low Security (%) 65 | 100 46 100 Level 1 33 | . 51 . Level 2 1 | . 1 . Level 3 . | . . . Level 4 . | . . . Level 5 . | . . . High Security . | . . . Max Security . | . . . Squads Dispatched 3 | . 2 1 Investigation 1 | . 1 . Extermination . | . . . Reinforcement 2 | . 1 1 Assault . | . . . Garrison . | . . . Intercept . | . . . Searches Triggered . | . . . Construction Impeded . | . . . Haulers Reinforced . | . . . Active Scanning Responses . | . . . Cargo Convoy Interrupts . | . . . Stealth | -11 -10 -9 --------- Run | Yrd Mat Mat Distress Signals 6 | . 2 4 Communications Jammed . | . . . Distress Signals . | . . . Times Spotted 23 | . 16 7 Peak Tracking Total 4 | . 4 3 Tactical Retreats . | . . . Traps | -11 -10 -9 ------- Run | Yrd Mat Mat Traps Triggered 1 | . 1 . Indirectly . | . . . Trap Hack Attempts . | . . . Triggered . | . . . Disarmed 4 | . 4 . Reprogrammed . | . . . Reused . | . . . Traps Extracted . | . . . Installed . | . . . Triggered . | . . . Machines | -11 -10 -9 ---------- Run | Yrd Mat Mat Machines Disabled 4 | . 4 . Max in Single Turn 1 | . 1 . Machines Repaired . | . . . Machines Dismantled . | . . . Machines Sabotaged . | . . . Overloaded Fab Kills . | . . . Hacking | -11 -10 -9 --------- Run | Yrd Mat Mat Machines Accessed 10 | . 9 1 Terminals 7 | . 6 1 Fabricators . | . . . Repair Stations 1 | . 1 . Recycling Units 2 | . 2 . Scanalyzers . | . . . Garrison Access . | . . . Total Hacks 26 | . 24 2 Successful 15 | . 13 2 Failed 11 | . 11 . Catastrophic . | . . . Database Lockouts . | . . . Manual . | . . . Terminals 17 | . 15 2 Fabricators . | . . . Repair Stations 3 | . 3 . Recycling Units 6 | . 6 . Scanalyzers . | . . . Garrison Access . | . . . Terminal Hacks 9 | . 7 2 Record 2 | . 1 1 Robot Analysis 1 | . 1 . Emergency Access Points 1 | . 1 . Alert Level 1 | . 1 . Locate Traps 1 | . . 1 Disarm Traps 1 | . 1 . Hauler Manifests 2 | . 2 . Fabricator Hacks . | . . . Repair Station Hacks 2 | . 2 . Scan Component 1 | . 1 . Repair 1 | . 1 . Recycling Unit Hacks 4 | . 4 . Process 1 | . 1 . Report Inventory 1 | . 1 . Retrieve Matter 2 | . 2 . Scanalyzer . | . . . Garrison Access Hacks . | . . . Unauthorized Hacks . | . . . Terminals . | . . . Fabricators . | . . . Repair Stations . | . . . Recycling Units . | . . . Scanalyzers . | . . . Garrison Access . | . . . Data Cores Recovered . | . . . Used . | . . . Hacking Detections 7 | . 6 1 Full Trace Events 3 | . 3 . Feedback Events . | . . . Feedback Blocked . | . . . Robot Schematics Acquired . | . . . Robots Built . | . . . Authchips . | . . . Time . | . . . Total Robot Build Rating . | . . . Part Schematics Acquired . | . . . Parts Built . | . . . Authchips . | . . . Time . | . . . Total Part Build Rating . | . . . Parts Repaired 1 | . 1 . Time 26 | . 26 . Parts Recycled . | . . . Recycled Matter 57 | . 57 . Retrieved Matter 89 | . 89 . Retrieved Components . | . . . Parts Scanalyzed . | . . . Part Schematics Acquired . | . . . Parts Damaged . | . . . Bothacking | -11 -10 -9 ------------ Run | Yrd Mat Mat Used RIF Installer . | . . . Robots Hacked 1 | . . 1 Non-combat . | . . . Combat 1 | . . 1 Robot Hacks Applied 2 | . . 2 parse_system 2 | . . 2 Relay Couplers Released . | . . . Fabnet Peak Effective % . | . . . Robots Rewired . | . . . Allies Hacked . | . . . Hacks Repelled . | . . . Allies | -11 -10 -9 -------- Run | Yrd Mat Mat Total Allies . | . . . Largest Group . | . . . Highest-Rated Group . | . . . Highest-Rated Ally . | . . . Total Orders . | . . . Ally Attacks . | . . . Total Damage . | . . . Kills . | . . . Allies Corrupted . | . . . Allies Melted . | . . . Intel | -11 -10 -9 ------- Run | Yrd Mat Mat Robot Analysis Total 1 | . 1 . Derelict Logs Recovered . | . . . Drone Launches . | . . . Drone Recoveries . | . . . Exploration | -11 -10 -9 ------------- Run | Yrd Mat Mat Turns Passed 2220 | 197 1431 592 Spaces Moved 1172 | 121 805 246 Core 20 | 12 . 8 Treads 1146 | 103 805 238 Legs 6 | 6 . . Wheels . | . . . Hover . | . . . Flight . | . . . Fastest Speed 50 | 50 160 160 Average Speed 160 | 151 160 168 Slowest Speed 550 | 160 160 550 Overloaded Moves . | . . . Propulsion Burnouts . | . . . Robots Hopped . | . . . Cave-ins Triggered . | . . . Exploration Rate (%) 40 | 7 92 21 Regions Visited 2 Branch Regions . Pre-discovered Areas . | . . . Known Exits Taken 1 | . 1 . Unknown Exits Taken 1 | 1 . . Scrap Searched . | . . . Spaces Dug . | . . . Terrain Destroyed 166 | . 136 30 Melee . | . . . Projectile . | . . . AOE 166 | . 136 30 Terrain Rammed . | . . . Walls Destroyed . | . . . Machines Disabled . | . . . Actions | -11 -10 -9 --------- Run | Yrd Mat Mat Total 1424 | 132 897 395 Wait 152 | . 41 111 Move 1170 | 120 804 246 Hop . | . . . Pick Up 11 | 1 10 . Fast Attach 12 | 8 3 1 Attach 12 | . 2 10 Detach 4 | 1 1 2 Swap 2 | . . 2 Drop 4 | 2 2 . Fire 40 | . 23 17 Melee 4 | . . 4 Ram 2 | . . 2 Kick . | . . . Crush 11 | . 11 . Escape Stasis . | . . . Rewire . | . . . Trap . | . . . Miscellaneous . | . . . Route ------- -11/Scrapyard -10/Materials (discovered 5 exits: *Mat x3 / *Min x2) -9/Materials (discovered 1 exit: *Mat) History --------- Turn | Location | Event 2 | -11/Scrapyard | Discovered new exit (range 16) 198 | -11/Scrapyard | Entered Materials 300 | -10/Materials | Build established: Mutant 373 | -10/Materials | Discovered new exit (range 6) 442 | -10/Materials | Discovered new exit (range 3) 494 | -10/Materials | Discovered new exit (range 16) 550 | -10/Materials | Identified exit to Mines 660 | -10/Materials | Discovered new exit (range 11) 1081 | -10/Materials | Repaired Grenade Launcher 1405 | -10/Materials | Discovered new exit (range 9) 1610 | -10/Materials | Identified exit to Materials 1629 | -10/Materials | Entered another Materials area 1629 | -9/Materials | Evolved 2 slots: Power x1, Propulsion x1 2022 | -9/Materials | Discovered new exit (range 12) 2090 | -9/Materials | Identified exit to Materials 2193 | -9/Materials | Core integrity fell below 50% 2206 | -9/Materials | Core integrity fell below 20% 2221 | -9/Materials | Destroyed by L-31 Rogue with Katana Last Messages --------------- Med. Laser severed. K-01 Serf collects debris. Ion Engine destroyed. K-01 Serf collects debris. [Achievement: Let's See Who's Tougher] Grenade Launcher destroyed. Destroyed Grenade Launcher. K-01 Serf destroyed. K-01 Serf collects debris. Assault Rifle severed. Jacked L-31 Rogue... U-05 Engineer lays Concrete. Slammed into L-31 Rogue. Ion Engine destroyed. U-05 Engineer lays Concrete. U-05 Engineer builds a Wall. K-01 Serf collects debris. U-05 Engineer lays Concrete. Acquired Assault Rifle. U-05 Engineer lays Concrete. Map ----- +----------------------------------------------------+ | # #=""" # #?????# #???????????????? | | # # ""# #?????# """ #???????????????? | | # # T"# #?????#= """ #???????????????? | | #%# # ""# #???? # """ #???????????????? | | # # # # #?? ] # #???????????????? | | # # ########### # # """ #???????????????? | | #%###?????????# + """ # """ #???????????????? | | # ????????????# # """ # """ #???????????????? | | # ????????????# #??"" # #???????????????? | | # ????????????# #???? #####+###########????????? | | # ?????######?# #??????# #????????? | | ? ?????# # #??????# < #????????? | | ? ?????# # #??????# #????????? | | ???????# +^ #??????# #######+####????????? | | ???????# "Y" # #??????# #???# [ #????????? | | ???????+ """ # #??????# #???# #????????? | | ????????? ?# #??????# #???# """ #????????? | | ?????????####?# #??????# #???# """ #????????? | | ??????????????# #??????# #???# """ !#????????? | | ??????????????# #??????# #???# #????????? | | ??????????????# #??????# #?##########????????? | | ??????????????# #??????# # ????????????? | | ??????????????# #????### # ?????????????? | | ??????????????# ######## """""?????????????? | | ??????????????# u =# """""?????????????? | | ??????????????# k ru@ % ["""""?????????????? | | ????????? kw l """""?????????????? | | ??????? ############## [[ """""?????????????? | | ???????????????????????# = ????????????? | | ??????????????????????!! ###+###????????????? | | ?????????????????????!! + ##??????????????????? | | ???????????????????? !! # #???????????????????? | | ???????????????????####### #???????????????????? | | ?????????????????????????# #???????????????????? | | ?????????????????????????# #???????????????????? | | ?????????????????????????# #???????????????????? | | ?????????????????????????# #???????????????????? | | ?????????????????????????# #???????????????????? | | ?????????????????????????# #???????????????????? | | ?????????????????????????+ ???????????????????? | | ?????????????????????????# #???????????????????? | | ?????????????????????????# ????????????????????? | | ?????????????????????????? ????????????????????? | | ?????????????????????????? ????????????????????? | | ?????????????????????????????????????????????????? | | ?????????????????????????????????????????????????? | | ?????????????????????????????????????????????????? | | ?????????????????????????????????????????????????? | | ?????????????????????????????????????????????????? | | ?????????????????????????????????????????????????? | +----------------------------------------------------+ Best States ------------- Heat Dissipation 28 Energy Generation 15 Energy Capacity 400 Matter Stores 300 Matter Capacity 300 Sight Range 16 Terrain Scan Density 10 Evasion (%) 45 Recoil Reduction 2 Item Schematics ----------------- None Robot Schematics ------------------ None Fabricated ------------ Nothing Alien Tech Used ----------------- None Achievements -------------- Let's See Who's Tougher Challenges ------------ None Game ------ Seed PotentialMissileRailgun Manual? 0 Play Time 00:20:28 Cumulative 1.3 hours Start 2024.04.01 @ 13:35:38 End 2024.04.01 @ 13:57:08 Sessions 1 Manual Loads 0 Difficulty Rogue Special Mode None Game No. 3 Rogue 3 Adventurer 0 Explorer 0 Win Type - Total 0 Types 0/0/0/0/0/0/0/0/0 Lore% 1 Gallery% 5 Achievement% 4 Wizard Run 0 Options --------- Layout 2 ASCII 0 Keyboard 1 Movement Numpad Keybinds 0 Fullscreen 2 Font 24/Smallcaps Map View 50x44 Zoom Use 0% Tactical HUD 0 Map Filters NONE Filters NONE Steam 1 RUN: 46833017-54de-4e2f-97bc-aaf75f0c4d47